fUSD/lending_fUSD_20250219
["ID","MTS","AMOUNT","RATE_DAILY","PERIOD"]
[353694839,1739991119379,-500.0,0.0001227,2]
[353694840,1739991119389,-1333.33,0.0001227,2]
[353694841,1739991119399,-2099.28,0.0001227,2]
[353694842,1739991119409,-646.88,0.0001227,2]
[353694843,1739991119418,-1098.74,0.0001227,2]
[353694844,1739991119427,-631.78,0.0001227,2]
[353694845,1739991119436,-1305.78,0.0001227,2]
[353694846,1739991119448,-814.94,0.0001227,2]
[353694847,1739991119461,-591.42,0.0001227,2]
[353694848,1739991119471,-500.0,0.0001227,2]
[353694849,1739991119480,-1698.82,0.0001227,2]
[353694850,1739991119490,-1656.29,0.0001227,2]
[353694851,1739991119502,-958.07,0.0001227,2]
[353694852,1739991119511,-1140.78,0.0001227,2]
[353694853,1739991119521,-1343.79,0.0001227,2]
[353694854,1739991119532,-513.25146566,0.0001227,2]
[353694855,1739991119542,-1109.34,0.0001227,2]
[353694856,1739991119553,-940.17,0.0001227,2]
[353694857,1739991119563,-3616.83,0.0001227,2]
[353694858,1739991119573,-1068.94,0.0001227,2]
[353694859,1739991119583,-1192.02,0.0001227,2]
[353694860,1739991119592,-1134.66,0.0001227,2]
[353694861,1739991119602,-1387.53,0.0001227,2]
[353694862,1739991119611,-500.0,0.0001227,2]
[353694863,1739991119621,-525.63,0.0001227,2]
[353694864,1739991119631,-1867.51,0.0001227,2]
[353694865,1739991119641,-1262.86,0.0001227,2]
[353694866,1739991119651,-1225.46,0.0001227,2]
[353694867,1739991119661,-1283.85,0.0001227,2]
[353694868,1739991119671,-1033.15,0.0001227,2]
[353694869,1739991119681,-1890.5,0.0001227,2]
[353694870,1739991119692,-1247.13,0.0001227,2]
[353694871,1739991119702,-521.6039565,0.0001227,2]
[353694872,1739991119712,-953.52,0.0001227,2]
[353694873,1739991119723,-701.13,0.0001227,2]
[353694874,1739991119733,-606.51,0.0001227,2]
[353694875,1739991119743,-500.0,0.0001227,2]
[353694876,1739991119753,-837.99,0.0001227,2]
[353694877,1739991119763,-852.55,0.0001227,2]
[353694878,1739991119774,-1040.5,0.0001227,2]
[353694879,1739991119784,-626.51,0.0001227,2]
[353694880,1739991119795,-500.0,0.00012271,2]
[353694881,1739991119806,-711.12,0.00012271,2]
[353694882,1739991119816,-500.0,0.00012271,2]
[353694883,1739991119826,-567.75,0.00012271,2]
[353694884,1739991119836,-774.79,0.00012271,2]
[353694885,1739991119845,-648.92,0.00012271,2]
[353694886,1739991119855,-500.0,0.00012271,2]
[353694887,1739991119865,-500.0,0.00012271,2]
[353694888,1739991119876,-939.76,0.00012271,2]
[353694889,1739991119887,-500.0,0.00012271,2]
[353694890,1739991119896,-726.31,0.00012271,2]
[353694891,1739991119907,-527.6,0.00012271,2]
[353694892,1739991119917,-637.14,0.00012271,2]
[353694893,1739991119927,-501.4,0.00012271,2]
[353694894,1739991119937,-550.13,0.00012271,2]
[353694895,1739991119948,-605.64,0.00012271,2]
[353694896,1739991119957,-670.06,0.00012271,2]
[353694897,1739991119968,-500.0,0.00012271,2]
[353694898,1739991119978,-500.0,0.00012271,2]
[353694899,1739991119988,-500.0,0.00012271,2]
[353694900,1739991119998,-741.15,0.00012271,2]
[353694901,1739991120009,-917.52,0.00012271,2]
[353694902,1739991120019,-653.65,0.00012271,2]
[353694903,1739991120029,-500.0,0.00012271,2]
[353694904,1739991120039,-575.12,0.00012271,2]
[353694905,1739991120050,-500.0,0.00012271,2]
[353694906,1739991120061,-1008.4,0.00012271,2]
[353694907,1739991120072,-648.67,0.00012271,2]
[353694908,1739991120083,-709.82,0.00012271,2]
[353694909,1739991120092,-759.69,0.00012271,2]
[353694910,1739991120102,-939.45,0.00012271,2]
[353694911,1739991120113,-934.24,0.00012271,2]
[353694912,1739991120123,-1565.74,0.00012271,2]
[353694913,1739991120134,-779.39,0.00012271,2]
[353694914,1739991120144,-1114.74,0.00012271,2]
[353694915,1739991120154,-1307.87,0.00012271,2]
[353694916,1739991120164,-1563.31,0.00012271,2]
[353694917,1739991120174,-626.84,0.00012271,2]
[353694918,1739991120185,-500.0,0.00012271,2]
[353694919,1739991120195,-1098.62,0.00012271,2]
[353694920,1739991120206,-602.42,0.00012271,2]
[353694921,1739991120216,-1563.53,0.00012271,2]
[353694922,1739991120227,-1617.89,0.00012271,2]
[353694923,1739991120238,-568.32,0.00012271,2]
[353694924,1739991120248,-1902.45,0.00012271,2]
[353694925,1739991120259,-500.0,0.00012271,2]
[353694926,1739991120269,-997.72,0.00012271,2]
[353694927,1739991120280,-1224.85,0.00012271,2]
[353694928,1739991120291,-1076.75,0.00012271,2]
[353694929,1739991120301,-1287.1,0.00012271,2]
[353694930,1739991120312,-507.43,0.00012271,2]
[353694931,1739991120323,-1834.21,0.00012271,2]
[353694932,1739991120333,-1131.11,0.00012271,2]
[353694933,1739991120343,-1818.6,0.00012271,2]
[353694934,1739991120354,-500.0,0.00012271,2]
[353694935,1739991120364,-967.39,0.00012271,2]
[353694936,1739991120374,-613.64,0.00012271,2]
[353694937,1739991120383,-500.0,0.00012271,2]
[353694938,1739991120394,-1954.75,0.00012271,2]
[353694939,1739991120404,-1010.26,0.00012271,2]
[353694940,1739991120415,-500.0,0.00012271,2]
[353694941,1739991120425,-651.03,0.00012271,2]
[353694942,1739991120435,-825.62,0.00012271,2]
[353694943,1739991120447,-562.00033742,0.00012271,2]
[353694944,1739991120461,-500.0,0.00012271,2]
[353694945,1739991120471,-500.0,0.00012271,2]
[353694946,1739991120482,-1110.11,0.00012271,2]
[353694947,1739991120492,-774.36,0.00012271,2]
[353694948,1739991120503,-811.92,0.00012271,2]
[353694949,1739991120513,-1151.56,0.00012271,2]
[353694950,1739991120523,-500.0,0.00012271,2]
[353694951,1739991120534,-1042.18,0.00012271,2]
[353694952,1739991120544,-500.0,0.00012271,2]
[353694953,1739991120554,-534.83,0.00012271,2]
[353694954,1739991120565,-619.91,0.00012271,2]
[353694955,1739991120575,-533.51,0.00012271,2]
[353694956,1739991120586,-581.26,0.00012271,2]
[353694957,1739991120596,-500.0,0.00012271,2]
[353694958,1739991120607,-500.0,0.00012271,2]
[353694959,1739991120618,-500.0,0.00012271,2]
[353694960,1739991120628,-849.02,0.00012271,2]
[353694961,1739991120639,-563.08,0.00012271,2]
[353694962,1739991120650,-758.16,0.00012271,2]
[353694963,1739991120660,-567.26944918,0.00012271,2]
[353694964,1739991120670,-500.0,0.00012271,2]
[353694965,1739991120681,-186.644659,0.00012329,2]
[353694966,1739991120692,-151.0,0.00012329,2]
[353694967,1739991120702,-151.0,0.00012329,2]
[353694968,1739991120712,-151.0,0.00012329,2]
[353694969,1739991120723,-151.0,0.00012329,2]
[353694970,1739991120733,-151.0,0.00012329,2]
[353694971,1739991120743,-194.653998,0.00012329,2]
[353694972,1739991120754,-151.0,0.00012329,2]
[353694973,1739991120765,-151.0,0.00012329,2]
[353694974,1739991120775,-151.0,0.00012329,2]
[353694975,1739991120785,-151.0,0.00012329,2]
[353694976,1739991120795,-151.0,0.00012329,2]
[353694977,1739991120805,-151.0,0.00012329,2]
[353694978,1739991120815,-151.0,0.00012329,2]
[353694979,1739991120826,-151.0,0.00012329,2]
[353694980,1739991120836,-230.990871,0.00012329,2]
[353694981,1739991120846,-151.0,0.00012329,2]
[353694982,1739991120857,-151.0,0.00012329,2]
[353694983,1739991120867,-151.0,0.00012329,2]
[353694984,1739991120877,-151.0,0.00012329,2]
[353694985,1739991120888,-151.0,0.00012329,2]
[353694986,1739991120898,-151.0,0.00012329,2]
[353694987,1739991120908,-235.956516,0.00012329,2]
[353694988,1739991120918,-479.702182,0.00012329,2]
[353694989,1739991120928,-479.702182,0.00012329,2]
[353694990,1739991120938,-479.702182,0.00012329,2]
[353694991,1739991120949,-479.702182,0.00012329,2]
[353694992,1739991120959,-479.702182,0.00012329,2]
[353694993,1739991120969,-479.702182,0.00012329,2]
[353694994,1739991120979,-479.702182,0.00012329,2]
[353694995,1739991120989,-479.702182,0.00012329,2]
[353694996,1739991120998,-479.702182,0.00012329,2]
[353694997,1739991121008,-479.702182,0.00012329,2]
[353694998,1739991121018,-479.702182,0.00012329,2]
[353694999,1739991121027,-479.702182,0.00012329,2]
[353695000,1739991121037,-479.702182,0.00012329,2]
[353695001,1739991121047,-479.702182,0.00012329,2]
[353695002,1739991121057,-479.702182,0.00012329,2]
[353695003,1739991121067,-479.702182,0.00012329,2]
[353695004,1739991121077,-479.702182,0.00012329,2]
[353695005,1739991121087,-479.702182,0.00012329,2]
[353695006,1739991121097,-479.702182,0.00012329,2]
[353695007,1739991121109,-479.702178,0.00012329,2]
[353695008,1739991121119,-359.487865,0.00012329,2]
[353695009,1739991121130,-359.487865,0.00012329,2]
[353695010,1739991121140,-359.487865,0.00012329,2]
[353695011,1739991121151,-359.487865,0.00012329,2]
[353695012,1739991121162,-359.487865,0.00012329,2]
[353695013,1739991121172,-359.487865,0.00012329,2]
[353695014,1739991121183,-359.487865,0.00012329,2]
[353695015,1739991121196,-359.487865,0.00012329,2]
[353695016,1739991121207,-359.487865,0.00012329,2]
[353695017,1739991121217,-359.487865,0.00012329,2]
[353695018,1739991121227,-359.487865,0.00012329,2]
[353695019,1739991121237,-359.487865,0.00012329,2]
[353695020,1739991121248,-359.487865,0.00012329,2]
[353695021,1739991121258,-359.487865,0.00012329,2]
[353695022,1739991121269,-359.487865,0.00012329,2]
[353695023,1739991121279,-359.487865,0.00012329,2]
[353695024,1739991121289,-359.487865,0.00012329,2]
[353695025,1739991121299,-359.48786,0.00012329,2]
[353695026,1739991121310,-151.0,0.00012329,2]
[353695027,1739991121320,-151.0,0.00012329,2]
[353695028,1739991121330,-151.0,0.00012329,2]
[353695029,1739991121340,-151.0,0.00012329,2]
[353695030,1739991121350,-151.0,0.00012329,2]
[353695031,1739991121360,-151.0,0.00012329,2]
[353695032,1739991121370,-151.0,0.00012329,2]
[353695033,1739991121380,-151.0,0.00012329,2]
[353695034,1739991121389,-151.0,0.00012329,2]
[353695035,1739991121399,-151.0,0.00012329,2]
[353695036,1739991121410,-226.80044,0.00012329,2]
[353695037,1739991121420,-151.0,0.00012329,2]
[353695038,1739991121431,-151.0,0.00012329,2]
[353695039,1739991121442,-151.0,0.00012329,2]
[353695040,1739991121453,-1285.43,0.00012351,2]
[353695041,1739991121465,-2055.78,0.00012351,2]
[353695042,1739991121476,-1176.26,0.00012351,2]
[353695043,1739991121486,-1598.02,0.00012351,2]
[353695044,1739991121497,-1177.64,0.00012351,2]
[353695045,1739991121507,-1728.13,0.00012351,2]
[353695046,1739991121516,-1464.57,0.00012351,2]
[353695047,1739991121526,-988.1,0.00012351,2]
[353695048,1739991121537,-1523.71,0.00012351,2]
[353695049,1739991121546,-1697.79,0.00012351,2]
[353695050,1739991121556,-914.84,0.00012351,2]
[353695051,1739991121566,-1345.01,0.00012351,2]
[353695052,1739991121576,-1899.5,0.00012351,2]
[353695053,1739991121585,-835.97,0.00012351,2]
[353695054,1739991121595,-1253.59,0.00012351,2]
[353695055,1739991121605,-676.35,0.00012351,2]
[353695056,1739991121615,-1199.2,0.00012351,2]
[353695057,1739991121624,-1444.06,0.00012351,2]
[353695058,1739991121633,-1165.51,0.00012351,2]
[353695059,1739991121643,-1110.09,0.00012351,2]
[353695060,1739991121653,-955.77,0.00012351,2]
[353695061,1739991121663,-1702.36,0.00012351,2]
[353695062,1739991121673,-500.0,0.00012351,2]
[353695063,1739991121683,-1068.07,0.00012351,2]
[353695064,1739991121693,-541.29,0.00012351,2]
[353695065,1739991121703,-1380.32,0.00012351,2]
[353695066,1739991121713,-564.03,0.00012352,2]
[353695067,1739991121723,-500.0,0.00012352,2]
[353695068,1739991121733,-958.09,0.00012352,2]
[353695069,1739991121743,-500.0,0.00012352,2]
[353695070,1739991121753,-638.44,0.00012352,2]
[353695071,1739991121763,-1305.17,0.00012352,2]
[353695072,1739991121773,-500.0,0.00012352,2]
[353695073,1739991121783,-273.30762086,0.00012352,2]
[353695074,1739991121795,-335.282174,0.00012352,2]
[353695075,1739991121971,-1013.4,0.00012352,2]
[353695076,1739991121980,-445.363227,0.00012352,2]
[353695077,1739991121990,-800.82,0.00012352,2]
[353695078,1739991121999,-566.24,0.00012352,2]
[353695079,1739991122009,-500.0,0.00012352,2]
[353695080,1739991122019,-705.7,0.00012352,2]
[353695081,1739991122029,-1291.22,0.00012352,2]
[353695082,1739991122038,-1007.94,0.00012352,2]
[353695083,1739991122047,-175.95626,0.00012352,2]
[353695084,1739991122057,-500.0,0.00012352,2]
[353695085,1739991122067,-1100.17,0.00012352,2]
[353695086,1739991122076,-1164.92,0.00012352,2]
[353695087,1739991122087,-1009.77,0.00012352,2]
[353695088,1739991122097,-1086.24,0.00012352,2]
[353695089,1739991122106,-1103.11,0.00012352,2]
[353695090,1739991122117,-500.0,0.00012352,2]
[353695091,1739991122127,-689.09,0.00012352,2]
[353695092,1739991122137,-1109.15,0.00012352,2]
[353695093,1739991122147,-752.25,0.00012352,2]
[353695094,1739991122156,-712.53,0.00012352,2]
[353695095,1739991122166,-844.15,0.00012352,2]
[353695096,1739991122175,-1035.94,0.00012352,2]
[353695097,1739991122185,-1177.99,0.00012352,2]
[353695098,1739991122197,-970.06,0.00012352,2]
[353695099,1739991122207,-842.16,0.00012352,2]
[353695100,1739991122216,-1231.95,0.00012352,2]
[353695101,1739991122226,-833.68,0.00012352,2]
[353695102,1739991122236,-1384.51,0.00012352,2]
[353695103,1739991122246,-992.43,0.00012352,2]
[353695104,1739991122256,-700.4,0.00012352,2]
[353695105,1739991122266,-896.41,0.00012352,2]
[353695106,1739991122275,-634.94928232,0.00012352,2]
[353695107,1739991122285,-835.28,0.00012352,2]
[353695108,1739991122295,-730.1,0.00012352,2]
[353695109,1739991122304,-638.47,0.00012352,2]
[353695110,1739991122314,-722.91,0.00012352,2]
[353695111,1739991122323,-700.98,0.00012352,2]
[353695112,1739991122332,-500.0,0.00012352,2]
[353695113,1739991122342,-887.61,0.00012352,2]
[353695114,1739991122352,-1299.23,0.00012352,2]
[353695115,1739991122361,-537.11,0.00012352,2]
[353695116,1739991122371,-1023.26,0.00012352,2]
[353695117,1739991122381,-500.0,0.00012352,2]
[353695118,1739991122390,-1193.06,0.00012352,2]
[353695119,1739991122400,-809.28,0.00012352,2]
[353695120,1739991122410,-569.98,0.00012352,2]
[353695121,1739991122419,-947.29,0.00012352,2]
[353695122,1739991122428,-738.85,0.00012352,2]
[353695123,1739991122438,-500.0,0.00012352,2]
[353695124,1739991122454,-819.36,0.00012352,2]
[353695125,1739991122466,-504.01,0.00012352,2]
[353695126,1739991122476,-841.31,0.00012352,2]
[353695127,1739991122485,-716.57,0.00012352,2]
[353695128,1739991122495,-1059.78,0.00012352,2]
[353695129,1739991122507,-685.17,0.00012352,2]
[353695130,1739991122517,-948.49,0.00012352,2]
[353695131,1739991122527,-1210.93,0.00012352,2]
[353695132,1739991122539,-1232.61,0.00012352,2]
[353695133,1739991122550,-660.75,0.00012352,2]
[353695134,1739991122560,-722.62,0.00012352,2]
[353695135,1739991122570,-856.89,0.00012352,2]
[353695136,1739991122579,-529.4,0.00012352,2]
[353695137,1739991122589,-368.79293014,0.00012352,2]
[353695138,1739991122599,-218.11510874,0.00012352,2]
[353695139,1739991122608,-1123.65,0.00012352,2]
[353695140,1739991122618,-767.14,0.00012352,2]
[353695141,1739991122628,-838.25,0.00012352,2]
[353695142,1739991122637,-857.74,0.00012352,2]
[353695143,1739991122646,-502.0,0.00012352,2]
[353695144,1739991122655,-702.31,0.00012352,2]
[353695145,1739991122664,-766.99,0.00012352,2]
[353695146,1739991122673,-1022.47,0.00012352,2]
[353695147,1739991122683,-1271.18,0.00012352,2]
[353695148,1739991122692,-562.14,0.00012352,2]
[353695149,1739991122702,-1255.93,0.00012352,2]
[353695150,1739991122711,-735.72,0.00012352,2]
[353695151,1739991122720,-1023.77,0.00012352,2]
[353695152,1739991122730,-401.51016457,0.00012352,2]
[353695153,1739991122739,-741.16,0.00012352,2]
[353695154,1739991122748,-500.0,0.00012352,2]
[353695155,1739991122758,-1492.46,0.00012352,2]
[353695156,1739991122767,-1211.99,0.00012352,2]
[353695157,1739991122776,-908.55,0.00012352,2]
[353695158,1739991122786,-1115.3,0.00012352,2]
[353695159,1739991122795,-622.28,0.00012352,2]
[353695160,1739991122804,-725.41,0.00012352,2]
[353695161,1739991122814,-1312.13,0.00012352,2]
[353695162,1739991122823,-500.0,0.00012352,2]
[353695163,1739991122832,-1135.89,0.00012352,2]
[353695164,1739991122842,-201.96294304,0.00012352,2]
[353695165,1739991122851,-626.24,0.00012352,2]
[353695166,1739991122860,-873.22,0.00012352,2]
[353695167,1739991122869,-828.64,0.00012352,2]
[353695168,1739991122879,-1067.13,0.00012352,2]
[353695169,1739991122888,-760.82,0.00012352,2]
[353695170,1739991122897,-959.81,0.00012352,2]
[353695171,1739991122907,-1130.2,0.00012352,2]
[353695172,1739991122917,-621.03,0.00012352,2]
[353695173,1739991122926,-837.8,0.00012352,2]
[353695174,1739991122937,-687.97,0.00012352,2]
[353695175,1739991122948,-763.25,0.00012352,2]
[353695176,1739991122957,-524.85,0.00012352,2]
[353695177,1739991122967,-1453.26,0.00012352,2]
[353695178,1739991122976,-2178.41,0.00012352,2]
[353695179,1739991122986,-2978.68,0.00012352,2]
[353695180,1739991122996,-867.64,0.00012352,2]
[353695181,1739991123006,-500.0,0.00012352,2]
[353695182,1739991123015,-909.17,0.00012352,2]
[353695183,1739991123026,-944.41,0.00012352,2]
[353695184,1739991123035,-1335.65,0.00012352,2]
[353695185,1739991123045,-1536.77,0.00012352,2]
[353695186,1739991123055,-1667.3,0.00012352,2]
[353695187,1739991123066,-2300.26,0.00012352,2]
[353695188,1739991123075,-1054.96,0.00012352,2]
[353695189,1739991123086,-3967.01,0.00012352,2]
[353695190,1739991123096,-2151.49,0.00012352,2]
[353695191,1739991123106,-500.0,0.00012352,2]
[353695192,1739991123116,-1026.98,0.00012352,2]
[353695193,1739991123125,-1717.95,0.00012352,2]
[353695194,1739991123135,-723.0,0.00012352,2]
[353695195,1739991123144,-858.82,0.00012352,2]
[353695196,1739991123154,-736.71,0.00012352,2]
[353695197,1739991123164,-731.07,0.00012352,2]
[353695198,1739991123174,-808.06,0.00012352,2]
[353695199,1739991123184,-500.0,0.00012352,2]
[353695200,1739991123195,-1003.52,0.00012352,2]
[353695201,1739991123204,-500.0,0.00012352,2]
[353695202,1739991123214,-1216.45,0.00012352,2]
[353695203,1739991123224,-897.65,0.00012352,2]
[353695204,1739991123234,-969.77,0.00012352,2]
[353695205,1739991123244,-1228.25,0.00012352,2]
[353695206,1739991123255,-597.7,0.00012352,2]
[353695207,1739991123265,-2264.91,0.00012352,2]
[353695208,1739991123275,-500.0,0.00012352,2]
[353695209,1739991123285,-1031.26,0.00012352,2]
[353695210,1739991123295,-813.49,0.00012352,2]
[353695211,1739991123304,-807.9,0.00012352,2]
[353695212,1739991123314,-952.43,0.00012352,2]
[353695213,1739991123324,-1249.19,0.00012352,2]
[353695214,1739991123333,-943.59,0.00012352,2]
[353695215,1739991123343,-1931.39,0.00012352,2]
[353695216,1739991123353,-699.69,0.00012352,2]
[353695217,1739991123363,-736.37,0.00012352,2]
[353695218,1739991123373,-1349.59,0.00012352,2]
[353695219,1739991123383,-2136.43,0.00012352,2]
[353695220,1739991123393,-763.21,0.00012352,2]
[353695221,1739991123402,-1308.13,0.00012352,2]
[353695222,1739991123412,-676.6,0.00012352,2]
[353695223,1739991123422,-1669.19,0.00012352,2]
[353695224,1739991123431,-2496.14,0.00012352,2]
[353695225,1739991123445,-838.79,0.00012352,2]
[353695226,1739991123458,-500.0,0.00012352,2]
[353695227,1739991123470,-844.7,0.00012352,2]
[353695228,1739991123481,-1038.95,0.00012352,2]
[353695229,1739991123491,-239.7,0.00012352,2]
[353695230,1739991123503,-643.34,0.00012352,2]
[353695231,1739991123514,-862.23,0.00012352,2]
[353695232,1739991123524,-1682.85,0.00012352,2]
[353695233,1739991123536,-972.98,0.00012352,2]
[353695234,1739991123546,-1170.77,0.00012352,2]
[353695235,1739991123557,-1036.38,0.00012352,2]
[353695236,1739991123568,-665.65,0.00012352,2]
[353695237,1739991123579,-500.0,0.00012352,2]
[353695238,1739991123590,-816.32,0.00012352,2]
[353695239,1739991123600,-1472.21,0.00012352,2]
[353695240,1739991123611,-1143.91,0.00012352,2]
[353695241,1739991123622,-500.0,0.00012352,2]
[353695242,1739991123632,-7684.69,0.00012352,2]
[353695243,1739991123642,-1239.55,0.00012352,2]
[353695244,1739991123652,-1609.82,0.00012352,2]
[353695245,1739991123662,-694.56,0.00012352,2]
[353695246,1739991123672,-1000.0,0.00012352,2]
[353695247,1739991123683,-677.2,0.00012352,2]
[353695248,1739991123696,-1545.54,0.00012352,2]
[353695249,1739991123706,-1349.76,0.00012352,2]
[353695250,1739991123717,-1288.85,0.00012352,2]
[353695251,1739991123728,-591.57,0.00012352,2]
[353695252,1739991123738,-1045.64,0.00012352,2]
[353695253,1739991123748,-544.71,0.00012352,2]
[353695254,1739991123758,-515.07,0.00012352,2]
[353695255,1739991123769,-500.0,0.00012352,2]
[353695256,1739991123779,-864.21,0.00012352,2]
[353695257,1739991123789,-1217.73,0.00012352,2]
[353695258,1739991123799,-1242.44,0.00012352,2]
[353695259,1739991123809,-608.9,0.00012352,2]
[353695260,1739991123819,-500.0,0.00012352,2]
[353695261,1739991123828,-1333.33,0.00012352,2]
[353695262,1739991123838,-2099.28,0.00012352,2]
[353695263,1739991123848,-646.88,0.00012352,2]
[353695264,1739991123857,-1098.74,0.00012352,2]
[353695265,1739991123867,-631.78,0.00012352,2]
[353695266,1739991123877,-1305.78,0.00012352,2]
[353695267,1739991123888,-814.94,0.00012352,2]
[353695268,1739991123898,-591.42,0.00012352,2]
[353695269,1739991123908,-500.0,0.00012352,2]
[353695270,1739991123918,-1698.82,0.00012352,2]
[353695271,1739991123928,-1656.29,0.00012352,2]
[353695272,1739991123938,-958.07,0.00012352,2]
[353695273,1739991123951,-1140.78,0.00012352,2]
[353695274,1739991123962,-1343.79,0.00012352,2]
[353695275,1739991123972,-1109.34,0.00012352,2]
[353695276,1739991123982,-940.17,0.00012352,2]
[353695277,1739991123992,-3616.83,0.00012352,2]
[353695278,1739991124002,-1068.94,0.00012352,2]
[353695279,1739991124013,-1192.02,0.00012352,2]
[353695280,1739991124023,-1134.66,0.00012352,2]
[353695281,1739991124034,-1387.53,0.00012352,2]
[353695282,1739991124044,-545.43517547,0.00012352,2]
[353695283,1739991124054,-525.63,0.00012352,2]
[353695284,1739991124064,-1867.51,0.00012352,2]
[353695285,1739991124075,-1262.86,0.00012352,2]
[353695286,1739991124085,-180.896505,0.00012352,2]
[353695287,1739991124095,-1225.46,0.00012352,2]
[353695288,1739991124107,-1283.85,0.00012352,2]
[353695289,1739991124117,-1033.15,0.00012352,2]
[353695290,1739991124127,-1890.5,0.00012352,2]
[353695291,1739991124137,-1247.13,0.00012352,2]
[353695292,1739991124147,-953.52,0.00012352,2]
[353695293,1739991124158,-701.13,0.00012352,2]
[353695294,1739991124168,-606.51,0.00012352,2]
[353695295,1739991124179,-500.0,0.00012352,2]
[353695296,1739991124189,-837.99,0.00012352,2]
[353695297,1739991124202,-852.55,0.00012352,2]
[353695298,1739991124213,-1040.5,0.00012352,2]
[353695299,1739991124223,-626.51,0.00012352,2]
[353695300,1739991124234,-500.0,0.00012353,2]
[353695301,1739991124244,-711.12,0.00012353,2]
[353695302,1739991124255,-500.0,0.00012353,2]
[353695303,1739991124265,-567.75,0.00012353,2]
[353695304,1739991124276,-774.79,0.00012353,2]
[353695305,1739991124287,-648.92,0.00012353,2]
[353695306,1739991124298,-562.38626327,0.00012353,2]
[353695307,1739991124308,-500.0,0.00012353,2]
[353695308,1739991124318,-939.76,0.00012353,2]
[353695309,1739991124328,-251.44,0.00012353,2]
[353695310,1739991124337,-726.31,0.00012353,2]
[353695311,1739991124347,-527.6,0.00012353,2]
[353695312,1739991124357,-637.14,0.00012353,2]
[353695313,1739991124367,-501.4,0.00012353,2]
[353695314,1739991124376,-550.13,0.00012353,2]
[353695315,1739991124386,-605.64,0.00012353,2]
[353695316,1739991124396,-670.06,0.00012353,2]
[353695317,1739991124407,-500.0,0.00012353,2]
[353695318,1739991124417,-500.0,0.00012353,2]
[353695319,1739991124427,-500.0,0.00012353,2]
[353695320,1739991124437,-741.15,0.00012353,2]
[353695321,1739991124450,-917.52,0.00012353,2]
[353695322,1739991124466,-653.65,0.00012353,2]
[353695323,1739991124476,-500.0,0.00012353,2]
[353695324,1739991124486,-575.12,0.00012353,2]
[353695325,1739991124497,-500.0,0.00012353,2]
[353695326,1739991124508,-1008.4,0.00012353,2]
[353695327,1739991124519,-648.67,0.00012353,2]
[353695328,1739991124529,-709.82,0.00012353,2]
[353695329,1739991124539,-759.69,0.00012353,2]
[353695330,1739991124549,-939.45,0.00012353,2]
[353695331,1739991124559,-934.24,0.00012353,2]
[353695332,1739991124570,-1565.74,0.00012353,2]
[353695333,1739991124580,-779.39,0.00012353,2]
[353695334,1739991124591,-1114.74,0.00012353,2]
[353695335,1739991124601,-1307.87,0.00012353,2]
[353695336,1739991124610,-1563.31,0.00012353,2]
[353695337,1739991124620,-626.84,0.00012353,2]
[353695338,1739991124630,-500.0,0.00012353,2]